Cogmind - Beta 14 @@@ ROGUE MODE // 2025.03.15 @ 23:28:12 Player: Skergy Result: Destroyed by Shrapnel Trap Performance ------------- Evolutions (0) 0 Regions Visited (2) 400 Robots Destroyed (22) 110 Value Destroyed (588) 588 Prototype IDs (1) 20 Alien Tech Used (0) 0 Bonus (0) 0 TOTAL SCORE: 1118 Bonus ------- None Cogmind --------- Core Integrity 0/250 Matter 300/300 Energy 96/100 System Corruption 0% Temperature Cool (2) Movement Walking (260) Ox2 Location -10/Subcaves Parts ------- > --- POWER (1+3) ------ (None) > --- PROPULSION (2) --- Aluminum Leg Aluminum Leg > --- UTILITY (2) ------ High-capacity Storage Unit Power Bank > --- WEAPON (2) ------- Battle Rifle Subdweller Shrapnel Launcher > --- INVENTORY (20) --- Subdweller Monowheel Subdweller Monowheel Subdweller Monowheel Disposable Heat Sink Small Storage Unit Large Storage Unit Medium Matter Pod (100) High-capacity Matter Pod (109) Signal Interpreter Signal Interpreter Seismic Detector Subdweller Laser Battle Rifle Datajack Mining Laser Piercing Trap Scrap Shield Fragment (35) Peak State ------------ > --- POWER ------------ (None) > --- PROPULSION ------- Aluminum Leg Aluminum Leg > --- UTILITY ---------- High-capacity Storage Unit Power Bank > --- WEAPON ----------- Battle Rifle Subdweller Shrapnel Launcher > --- INVENTORY -------- Subdweller Monowheel Disposable Heat Sink Small Storage Unit Large Storage Unit Medium Matter Pod High-capacity Matter Pod Signal Interpreter Signal Interpreter Seismic Detector Subdweller Laser Battle Rifle Datajack Mining Laser Piercing Trap Scrap Shield Fragment [Rating: 18] Favorites ----------- Power Ion Engine Engine Ion Engine Propulsion Light Treads Treads Light Treads Leg Aluminum Leg Utility High-capacity Storage Unit Device Seismic Detector Storage High-capacity Storage Unit Weapon Medium Laser Energy Gun Medium Laser Ballistic Gun Battle Rifle Launcher Subdweller Shrapnel Launcher Special Weapon Mining Laser Build | -11 -10 -10 ------- Run | Yrd Mat Sub Slots Evolved . | . . . Power . | . . . Propulsion . | . . . Utility . | . . . Weapon . | . . . Parts Attached 23 | 6 5 12 Power 3 | 1 . 2 Engine 3 | 1 . 2 Core . | . . . Reactor . | . . . Propulsion 4 | 2 . 2 Treads 2 | 2 . . Leg 2 | . . 2 Wheel . | . . . Hover . | . . . Flight . | . . . Utility 5 | 1 3 1 Device 2 | . 1 1 Storage 3 | 1 2 . Processor . | . . . Hackware . | . . . Protection . | . . . Artifact . | . . . Weapon 11 | 2 2 7 Energy Gun 5 | 2 1 2 Energy Cannon . | . . . Ballistic Gun 1 | . . 1 Ballistic Cannon . | . . . Launcher 4 | . 1 3 Special Weapon 1 | . . 1 Impact Weapon . | . . . Slashing Weapon . | . . . Piercing Weapon . | . . . Special Melee Weapon . | . . . Unidentified Prototypes 1 | . . 1 Parts Lost 12 | . 1 11 Power 3 | . . 3 Propulsion 2 | . . 2 Utility . | . . . Weapon 7 | . 1 6 Highest Loss Streak 10 | . 1 10 To Critical Strikes . | . . . Average Slot Usage (%) 83 | . 99 70 Engine 8 | . 14 3 Treads 17 | . 28 7 Leg 7 | . . 13 Device 12 | . 13 11 Storage 12 | . 14 11 Energy Gun 17 | . 26 9 Ballistic Gun 2 | . . 4 Launcher 3 | . 1 4 Special Weapon 1 | . . 2 Peak Build Rating 18 | 6 8 18 Average Rating 10 | 4 7 13 On Entrance 4 | . 6 8 Naked Turns . | . . . Heaviest Build 53 | 14 50 53 Greatest Support 40 | 40 40 40 Greatest Overweight (x) 13 | . 1 13 Average Overweight (x) 1 | . . 1 Largest Inventory Capacity 20 | 8 20 20 Average Capacity 18 | 6 17 20 Most Carried 17 | 4 16 17 Average Carried 11 | 3 10 12 Final Capacity 20 | 8 20 20 Final Carried 17 | 4 16 17 Class Distribution -------------------- 100% | Mutant Dominant Class ---------------- Mutant | -10/Materials Mutant | -10/Subcaves Resources | -11 -10 -10 ----------- Run | Yrd Mat Sub Matter Collected 725 | 180 240 305 Remotely . | . . . Salvage Created 551 | . 337 214 Parts 49 | . 31 18 Haulers Intercepted . | . . . Recyclers Shooed . | . . . Parts Field Recycled . | . . . Retrieved Matter . | . . . Parts Self-Destructed 4 | . . 4 Prevented . | . . . Kills | -11 -10 -10 ------- Run | Yrd Mat Sub Combat Hostiles Destroyed 18 | . 11 7 Guns 9 | . 8 1 Cannons 1 | . . 1 AOE 8 | . 3 5 Classes Destroyed 5 | . 4 1 Tunneler 1 | . 1 . Watcher 3 | . 3 . Swarmer 6 | . 6 . Grunt 5 | . 5 . Subdweller 7 | . . 7 Best Kill Streak 6 | . 6 2 Combat Bots Only 4 | . 4 2 Max Kills in Single Turn 3 | . 3 2 Gunslinging . | . . . Exploded 2 | . 2 2 Melee . | . . . Uniques/NPCs Destroyed . | . . . Combat | -11 -10 -10 -------- Run | Yrd Mat Sub Hostile Shots Fired 102 | . 56 46 Missed 37 | . 22 15 Damage Taken 1332 | . 366 966 Core 285 | . 41 244 Absorbed by Shields . | . . . Core Remaining (%) 100 | 100 . . Volleys Fired 51 | . 31 20 Largest 2 | . 2 2 Hottest 100 | . 90 100 Shots Fired 70 | . 43 27 Gun 57 | . 40 17 Cannon . | . . . Launcher 10 | . 3 7 Special 3 | . . 3 Kinetic 4 | . . 4 Thermal 45 | . 31 14 Explosive 8 | . 3 5 Electromagnetic 13 | . 9 4 Robot Hit Streak 10 | . 6 10 Robot Miss Streak 3 | . 3 1 Penetration Max . | . . . Secondary Targets . | . . . Shots Hit Robots 47 | . 25 22 Core Hits 34 | . 18 16 Critical Kills . | . . . Critical Parts Destroyed . | . . . Critical Strikes 3 | . 2 1 Burn 3 | . 2 1 Melee Attacks . | . . . Impact . | . . . Slashing . | . . . Piercing . | . . . Sneak Attacks . | . . . Combat Hostiles . | . . . Follow-up Attacks . | . . . Damage Inflicted 1287 | . 590 697 Guns 484 | . 332 152 Cannons . | . . . Explosions 731 | . 258 473 Melee . | . . . Ramming . | . . . Kinetic 179 | . . 179 Thermal 432 | . 242 190 Explosive 552 | . 258 294 Electromagnetic 124 | . 90 34 Impact . | . . . Slashing . | . . . Piercing . | . . . Highest Corruption . | . . . Average Corruption . | . . . Corruption Purged . | . . . Corruption Blocked . | . . . Overload Shots . | . . . Overflow Damage 12 | . . 12 Projectiles . | . . . Explosions 12 | . . 12 Melee . | . . . Knockbacks . | . . . Impact . | . . . Kinetic . | . . . Secondary . | . . . Self-Inflicted Damage 137 | . . 137 Shots 4 | . . 4 Rammed . | . . . Targets Rammed . | . . . Kicked . | . . . Crushed . | . . . Highest Temperature 243 | . 230 243 Average Temperature 79 | . 75 139 Received Heat Transfer 589 | . 120 469 Effects 3 | . . 3 Interference 3 | . . 3 Siege Activations . | . . . Robots Corrupted . | . . . Combat Hostiles . | . . . Parts Fried 1 | . 1 . Impact Corruptions . | . . . Robots Melted . | . . . Combat Hostiles . | . . . Parts Melted 4 | . 4 . Heat Transferred 1397 | . 851 546 Parts Sabotaged . | . . . Parts Stolen . | . . . Parts Stripped . | . . . Power Chain Reactions . | . . . Alert | -11 -10 -10 ------- Run | Yrd Mat Sub Peak Influence 256 | . 256 . Initial . | . . . Average 68 | . 73 . Maximum Alert Level 1 | . 1 . Low Security (%) 96 | 100 96 . Level 1 3 | . 3 . Level 2 . | . . . Level 3 . | . . . Level 4 . | . . . Level 5 . | . . . High Security . | . . . Max Security . | . . . Squads Dispatched 2 | . 2 . Investigation 1 | . 1 . Extermination . | . . . Reinforcement 1 | . 1 . Assault . | . . . Garrison . | . . . Intercept . | . . . Searches Triggered . | . . . Construction Impeded . | . . . Haulers Reinforced . | . . . Active Scanning Responses . | . . . Cargo Convoy Interrupts . | . . . Stealth | -11 -10 -10 --------- Run | Yrd Mat Sub Distress Signals 1 | . 1 . Communications Jammed . | . . . Distress Signals . | . . . Times Spotted 24 | . 16 8 Peak Tracking Total 5 | . 5 4 Tactical Retreats . | . . . Traps | -11 -10 -10 ------- Run | Yrd Mat Sub Traps Triggered 3 | . 2 1 Indirectly . | . . . Trap Hack Attempts . | . . . Triggered . | . . . Disarmed . | . . . Reprogrammed . | . . . Reused . | . . . Traps Extracted . | . . . Installed . | . . . Triggered . | . . . Most Traps Carried 1 | . . 1 Machines | -11 -10 -10 ---------- Run | Yrd Mat Sub Machines Disabled 1 | . 1 . Max in Single Turn 1 | . 1 . Machines Repaired . | . . . Machines Dismantled . | . . . Machines Sabotaged . | . . . Overloaded Fab Kills . | . . . Hacking | -11 -10 -10 --------- Run | Yrd Mat Sub Machines Accessed 2 | . 1 1 Terminals 1 | . 1 . Fabricators . | . . . Repair Stations . | . . . Recycling Units . | . . . Scanalyzers . | . . . Garrison Access . | . . . Total Hacks 5 | . 4 1 Successful 2 | . 1 1 Failed 3 | . 3 . Catastrophic . | . . . Database Lockouts . | . . . Manual 4 | . 4 . Terminals 4 | . 4 . Fabricators . | . . . Repair Stations . | . . . Recycling Units . | . . . Scanalyzers . | . . . Garrison Access . | . . . Terminal Hacks 1 | . . 1 Open Door 1 | . . 1 Fabricator Hacks . | . . . Repair Station Hacks . | . . . Recycling Unit Hacks . | . . . Scanalyzer . | . . . Garrison Access Hacks . | . . . Unauthorized Hacks 1 | . 1 . Terminals 1 | . 1 . Botnet 1 | . 1 . Fabricators . | . . . Repair Stations . | . . . Recycling Units . | . . . Scanalyzers . | . . . Garrison Access . | . . . Data Cores Recovered . | . . . Used . | . . . Hacking Detections . | . . . Full Trace Events . | . . . Feedback Events . | . . . Feedback Blocked . | . . . Robot Schematics Acquired . | . . . Robots Built . | . . . Authchips . | . . . Time . | . . . Total Robot Build Rating . | . . . Part Schematics Acquired . | . . . Parts Built . | . . . Authchips . | . . . Time . | . . . Total Part Build Rating . | . . . Parts Repaired . | . . . Time . | . . . Parts Recycled . | . . . Recycled Matter . | . . . Retrieved Matter . | . . . Retrieved Components . | . . . Parts Scanalyzed . | . . . Part Schematics Acquired . | . . . Parts Damaged . | . . . Bothacking | -11 -10 -10 ------------ Run | Yrd Mat Sub Used RIF Installer . | . . . Robots Hacked . | . . . Non-combat . | . . . Combat . | . . . Robot Hacks Applied . | . . . Relay Couplers Released . | . . . Fabnet Peak Effective % . | . . . Robots Rewired . | . . . Allies Hacked . | . . . Hacks Repelled . | . . . Allies | -11 -10 -10 -------- Run | Yrd Mat Sub Total Allies . | . . . Largest Group . | . . . Highest-Rated Group . | . . . Highest-Rated Ally . | . . . Total Orders . | . . . Ally Attacks . | . . . Total Damage . | . . . Kills . | . . . Allies Corrupted . | . . . Allies Melted . | . . . Intel | -11 -10 -10 ------- Run | Yrd Mat Sub Robot Analysis Total . | . . . Derelict Logs Recovered . | . . . Drone Launches . | . . . Drone Recoveries . | . . . Exploration | -11 -10 -10 ------------- Run | Yrd Mat Sub Turns Passed 2096 | 69 921 1106 Spaces Moved 815 | 39 372 404 Core 6 | 5 . 1 Treads 526 | 34 372 120 Legs 283 | . . 283 Wheels . | . . . Hover . | . . . Flight . | . . . Fastest Speed 50 | 50 160 240 Average Speed 225 | 145 200 255 Slowest Speed 700 | 160 240 700 Overloaded Moves . | . . . Propulsion Burnouts . | . . . Robots Hopped . | . . . Cave-ins Triggered . | . . . Exploration Rate (%) 35 | 3 74 29 Regions Visited 2 Branch Regions 1 Pre-discovered Areas 1 | . . 1 Known Exits Taken . | . . . Unknown Exits Taken 2 | 1 1 . Scrap Searched 2 | . . 2 Spaces Dug . | . . . Terrain Destroyed 73 | . 25 48 Melee . | . . . Projectile . | . . . AOE 73 | . 25 48 Terrain Rammed . | . . . Walls Destroyed . | . . . Machines Disabled . | . . . Actions | -11 -10 -10 --------- Run | Yrd Mat Sub Total 1001 | 49 504 448 Wait 86 | . 83 3 Move 813 | 38 371 404 Hop . | . . . Pick Up 24 | 5 12 7 Fast Attach 11 | 5 2 4 Attach 10 | 1 1 8 Detach 3 | . 1 2 Swap 2 | . 2 . Drop 1 | . 1 . Fire 51 | . 31 20 Melee . | . . . Ram . | . . . Kick . | . . . Crush . | . . . Escape Stasis . | . . . Rewire . | . . . Trap . | . . . Miscellaneous . | . . . Route ------- -11/Scrapyard -10/Materials (discovered 3 exits: [*Mat] / [*Min] / *Sub) -10/Subcaves History --------- Turn | Location | Event 10 | -11/Scrapyard | Discovered new exit (range 15) 70 | -11/Scrapyard | Entered Materials 321 | -10/Materials | Build established: Mutant 341 | -10/Materials | Discovered new exit (range 10) 535 | -10/Materials | Discovered new exit (range 3) 982 | -10/Materials | Discovered new exit (range 6) 991 | -10/Materials | Entered Subcaves 1262 | -10/Subcaves | A Subdweller sparked back to life 1309 | -10/Subcaves | Core integrity fell below 50% 1343 | -10/Subcaves | Found Prototype Device 1343 | -10/Subcaves | Identified Power Bank 1344 | -10/Subcaves | Attached Power Bank, gained temporary slots: Power x3 1352 | -10/Subcaves | Lost 10 parts (3p2n5w) 1566 | -10/Subcaves | Core integrity fell below 20% 1584 | -10/Subcaves | Shifting Twisted Machinery released Battle Rifle 1587 | -10/Subcaves | Shifting Twisted Machinery released Sub. Shrapnel Launcher 1918 | -10/Subcaves | Learned location of Zion (-6) 1918 | -10/Subcaves | Met a Zionite searching for "candidates" 2097 | -10/Subcaves | Destroyed by Shrapnel Trap Last Messages --------------- 01892_ Found Battle Rifle. 01892_ Found 65 Matter. 01893_ Acquired 65 matter. 01897_ Acquired Battle Rifle. 01901_ Acquired Piercing Trap. 01911_ Subatomizers dissect the Sub. Monowheel. 01915_ Acquired 46 matter. 01918_ 09-5ZG(z): "Hey you! It's really dangerous down here, I feel that you could die at any moment. For your health and safety might I suggest a trip to Zion?" World map updated: -6/Zion. 01920_ Acquired Sub. Monowheel. 02048_ BS-JJG(R) destroyed. 02060_ Subatomizers dissect the Sub. Monowheel. 02077_ Acquired Sub. Monowheel. 02082_ Acquired 24 matter. 02084_ Acquired 22 matter. 02085_ Subatomizers dissect the Disposable Heat Sink. 02097_ Triggered Shrapnel Trap. 02097_ An expanding cloud of shrapnel blasts out in all directions. Map ----- +----------------------------------------------------+ | ??#& # " ## #????## ####?????????????? | | ??# "" " "##?# ######## #?????????????? | | ??# ###" #??# ## ## #?????????????? | | ######### #?? ## ## ##?????????????? | | ## ### ##?? #?# #?# #??????????????? | | ## ### ### ##?????????????? | | ### #?????????????? | | ### ##?????????????? | | ## ### #### ##??????????????? | | ### ## ##??# #???????????????? | | ##?### ##???# #???????????????? | | ###### ##????## #???????????????? | | ## # ###????#? #???????????????? | | ##### # ##???? #?# #???????????????? | | ????# ## #### #?# #???????????????? | | ???## ## # #?# ???????????????? | | ???# #????? #???????????????? | | ??# ###????? #???????????????? | | ??# ##?????? ##?????????????? | | ??# ###???? ^ #?????????????? | | ??# ;##???# #?????????????? | | ??# ### ;##???#^ #??????????????? | | ??## ####??# ; ##### #??????????????? | | ???###???????## ;;; ^#??????????????? | | ?????????????## ! & #???????????????? | | ?????????????# & @ #???????????????? | | ??????????# ;; ; ;;## ##???????????????? | | ??????????## ##;;;;"##? #????????????????? | | ???????????#############???#????????????????? | | ????????????????????????????????????????????? | | ????????????????????????????????????????????? | | ????????????????????????????????????????????? | | ????????????????????????????????????????????? | | ????????????????????????????????????????????? | | ????????????????????????????????????????????? | | ????????????????????????????????????????????? | | ????????????????????????????????????????????? | | ????????????????????????????????????????????? | | ????????????????????????????????????????????? | | ????????????????????????????????????????????? | | ????????????????????????????????????????????? | | ????????????????????????????????????????????? | | ????????????????????????????????????????????? | | ????????????????????????????????????????????? | | ????????????????????????????????????????????? | | ????????????????????????????????????????????? | | ????????????????????????????????????????????? | | ????????????????????????????????????????????? | | ????????????????????????????????????????????? | | ????????????????????????????????????????????? | +----------------------------------------------------+ Best States ------------- Heat Dissipation 25 Energy Generation 10 Energy Capacity 250 Matter Stores 300 Matter Capacity 300 Sight Range 16 Terrain Scan Density 10 Evasion (%) 40 Recoil Reduction 2 Item Schematics ----------------- None Robot Schematics ------------------ None Fabricated ------------ Nothing Alien Tech Used ----------------- None Achievements -------------- None Challenges ------------ None Game ------ Seed MakeshiftFlightDeflector Manual? 0 Play Time 00:14:21 Cumulative 71.7 hours Start 2025.03.15 @ 23:18:00 End 2025.03.15 @ 23:28:12 Sessions 1 Manual Loads 0 Difficulty Rogue Special Mode None Game No. 78 Rogue 78 Adventurer 0 Explorer 0 Win Type - Total 2 Types 2/0/0/0/0/0/0/0/0 Lore% 43 Gallery% 45 Achievement% 40 Wizard Run 0 Options --------- Layout 0 ASCII 0 Keyboard 1 Movement Numpad Keybinds 0 Fullscreen 1 Font 24/Terminus Map View 76x50 Zoom Use 0% Tactical HUD 1 Map Filters NONE Filters NONE Steam 1 RUN: 5e3e88f3-14aa-4890-98a3-a60b0dce110b